Cogmind - Beta 13 X2 @@@ ROGUE MODE // 2024.01.20 @ 03:10:08 Player: Minty Result: Destroyed by D-53 Grenadier with Mini Grenade Launcher Performance ------------- Evolutions (0) 0 Regions Visited (2) 400 Robots Destroyed (14) 70 Value Destroyed (302) 302 Prototype IDs (2) 40 Alien Tech Used (0) 0 Bonus (0) 0 TOTAL SCORE: 812 Bonus ------- None Cogmind --------- Core Integrity 0/250 Matter 290/300 Energy 100/100 System Corruption 0% Temperature Cool (0) Movement Rolling (80) Location -10/Mines Parts ------- > --- POWER (1) -------- (None) > --- PROPULSION (2) --- Wheel Wheel > --- UTILITY (2) ------ Improved Heat Sink Medium Storage Unit > --- WEAPON (2) ------- (None) > --- INVENTORY (10) --- Light Ion Engine Light Treads Heat Sink Small Storage Unit Experimental Sensor Array Targeting Computer Tractor Beam Beam Rifle Peak State ------------ > --- POWER ------------ Improved Ion Engine > --- PROPULSION ------- Light Treads Light Treads > --- UTILITY ---------- Improved Heat Sink Medium Storage Unit > --- WEAPON ----------- Beam Rifle Beam Cannon > --- INVENTORY -------- Light Ion Engine Wheel Wheel Heat Sink Small Storage Unit Experimental Sensor Array Targeting Computer Tractor Beam EM Pulse Gun [Rating: 12] Favorites ----------- Power Light Ion Engine Engine Light Ion Engine Propulsion Aluminum Leg Treads Light Treads Leg Aluminum Leg Wheel Wheel Utility Medium Storage Unit Device Improved Heat Sink Storage Medium Storage Unit Weapon Medium Laser Energy Gun Medium Laser Energy Cannon Beam Cannon Build | -11 -10 -10 ------- Run | Yrd Mat Min Slots Evolved . | . . . Power . | . . . Propulsion . | . . . Utility . | . . . Weapon . | . . . Parts Attached 16 | . 3 13 Power 3 | . . 3 Engine 3 | . . 3 Core . | . . . Reactor . | . . . Propulsion 5 | . 1 4 Treads 2 | . . 2 Leg 1 | . 1 . Wheel 2 | . . 2 Hover . | . . . Flight . | . . . Utility 3 | . 2 1 Device 2 | . 1 1 Storage 1 | . 1 . Processor . | . . . Hackware . | . . . Protection . | . . . Artifact . | . . . Weapon 5 | . . 5 Energy Gun 3 | . . 3 Energy Cannon 2 | . . 2 Ballistic Gun . | . . . Ballistic Cannon . | . . . Launcher . | . . . Special Weapon . | . . . Impact Weapon . | . . . Slashing Weapon . | . . . Piercing Weapon . | . . . Special Melee Weapon . | . . . Unidentified Prototypes . | . . . Parts Lost 8 | . . 8 Power 2 | . . 2 Propulsion 2 | . . 2 Utility . | . . . Weapon 4 | . . 4 Highest Loss Streak 3 | . . 3 To Critical Strikes . | . . . Average Slot Usage (%) 95 | . 94 96 Engine 13 | . 14 13 Treads 11 | . . 20 Leg 13 | . 28 1 Wheel 3 | . . 5 Device 11 | . 8 14 Storage 14 | . 14 14 Energy Gun 15 | . 28 4 Energy Cannon 11 | . . 20 Naked Turns . | . . . Heaviest Build 24 | 12 18 24 Greatest Support 40 | 20 20 40 Greatest Overweight (x) 2 | . . 2 Average Overweight (x) . | . . . Largest Inventory Capacity 10 | 8 10 10 Average Capacity 9 | 8 9 10 Most Carried 10 | 6 10 10 Average Carried 8 | 6 7 8 Final Capacity 10 | 8 10 10 Final Carried 10 | 6 10 8 Class Distribution -------------------- 100% | Mutant Dominant Class ---------------- Mutant | -10/Materials Mutant | -10/Mines Resources | -11 -10 -10 ----------- Run | Yrd Mat Min Matter Collected 319 | 200 30 89 Remotely . | . . . Salvage Created 482 | . 182 300 Parts 30 | . 13 17 Haulers Intercepted 1 | . 1 . Recyclers Shooed . | . . . Parts Field Recycled . | . . . Retrieved Matter . | . . . Parts Self-Destructed . | . . . Prevented . | . . . Kills | -11 -10 -10 ------- Run | Yrd Mat Min Combat Hostiles Destroyed 16 | . 5 11 Guns 8 | . 5 3 Cannons 6 | . . 6 Classes Destroyed 6 | . 4 2 Worker 1 | . 1 . Hauler 1 | . 1 . Swarmer 6 | . 3 3 Grunt 4 | . 2 2 Sentry 2 | . . 2 Assembled 4 | . . 4 Best Kill Streak 5 | . 4 5 Combat Bots Only 5 | . 3 5 Max Kills in Single Turn 1 | . 1 1 Gunslinging . | . . . Exploded . | . . . Melee . | . . . Uniques/NPCs Destroyed . | . . . Combat | -11 -10 -10 -------- Run | Yrd Mat Min Hostile Shots Fired 137 | . 25 112 Missed 28 | . 6 22 Damage Taken 1400 | . 172 1228 Core 263 | . 29 234 Absorbed by Shields . | . . . Core Remaining (%) 100 | 100 . . Volleys Fired 51 | . 23 28 Largest 2 | . 2 2 Hottest 120 | . 100 120 Shots Fired 95 | . 46 49 Gun 61 | . 46 15 Cannon 34 | . . 34 Launcher . | . . . Special . | . . . Kinetic . | . . . Thermal 91 | . 46 45 Explosive . | . . . Electromagnetic 4 | . . 4 Robot Hit Streak 13 | . 12 13 Robot Miss Streak 3 | . 3 2 Penetration Max . | . . . Secondary Targets . | . . . Shots Hit Robots 61 | . 28 33 Core Hits 26 | . 11 15 Critical Kills 2 | . . 2 Critical Parts Destroyed . | . . . Critical Strikes 4 | . 2 2 Burn 2 | . 2 . Meltdown 2 | . . 2 Melee Attacks . | . . . Impact . | . . . Slashing . | . . . Piercing . | . . . Sneak Attacks . | . . . Combat Hostiles . | . . . Follow-up Attacks . | . . . Damage Inflicted 941 | . 360 581 Guns 500 | . 360 140 Cannons 439 | . . 439 Explosions . | . . . Melee . | . . . Ramming 2 | . . 2 Kinetic . | . . . Thermal 896 | . 360 536 Explosive . | . . . Electromagnetic 43 | . . 43 Impact . | . . . Slashing . | . . . Piercing . | . . . Highest Corruption . | . . . Average Corruption . | . . . Corruption Purged . | . . . Corruption Blocked . | . . . Overload Shots . | . . . Overflow Damage . | . . . Projectiles . | . . . Explosions . | . . . Melee . | . . . Knockbacks . | . . . Impact . | . . . Kinetic . | . . . Secondary . | . . . Self-Inflicted Damage . | . . . Shots . | . . . Rammed 1 | . . 1 Targets Rammed 1 | . . 1 Kicked . | . . . Crushed . | . . . Highest Temperature 150 | . 150 145 Average Temperature 51 | . 39 64 Received Heat Transfer 240 | . 42 198 Siege Activations . | . . . Robots Corrupted . | . . . Combat Hostiles . | . . . Parts Fried . | . . . Impact Corruptions . | . . . Robots Melted 2 | . . 2 Combat Hostiles 2 | . . 2 Parts Melted 1 | . 1 . Heat Transferred 2405 | . 1221 1184 Parts Sabotaged . | . . . Parts Stolen . | . . . Parts Stripped . | . . . Power Chain Reactions . | . . . Missiles Intercepted . | . . . Alert | -11 -10 -10 ------- Run | Yrd Mat Min Peak Influence 188 | . 82 188 Initial 28 | . . 28 Average 97 | . 37 149 Maximum Alert Level . | . . . Low Security (%) 100 | 100 100 100 Level 1 . | . . . Level 2 . | . . . Level 3 . | . . . Level 4 . | . . . Level 5 . | . . . High Security . | . . . Max Security . | . . . Squads Dispatched 2 | . 2 . Investigation 2 | . 2 . Extermination . | . . . Reinforcement . | . . . Assault . | . . . Garrison . | . . . Intercept . | . . . Searches Triggered . | . . . Construction Impeded . | . . . Haulers Reinforced . | . . . Active Scanning Responses . | . . . Cargo Convoy Interrupts . | . . . Stealth | -11 -10 -10 --------- Run | Yrd Mat Min Distress Signals . | . . . Communications Jammed . | . . . Distress Signals . | . . . Times Spotted 29 | . 8 21 Peak Tracking Total 11 | . 4 11 Tactical Retreats . | . . . Traps | -11 -10 -10 ------- Run | Yrd Mat Min Traps Triggered . | . . . Indirectly . | . . . Trap Hack Attempts . | . . . Triggered . | . . . Disarmed . | . . . Reprogrammed . | . . . Reused . | . . . Traps Extracted . | . . . Installed . | . . . Triggered . | . . . Machines | -11 -10 -10 ---------- Run | Yrd Mat Min Machines Disabled . | . . . Max in Single Turn . | . . . Machines Repaired . | . . . Machines Dismantled . | . . . Machines Sabotaged . | . . . Overloaded Fab Kills . | . . . Hacking | -11 -10 -10 --------- Run | Yrd Mat Min Machines Accessed 3 | . 3 . Terminals 3 | . 3 . Fabricators . | . . . Repair Stations . | . . . Recycling Units . | . . . Scanalyzers . | . . . Garrison Access . | . . . Total Hacks 11 | . 11 . Successful 6 | . 6 . Failed 5 | . 5 . Catastrophic 2 | . 2 . Database Lockouts . | . . . Manual 4 | . 4 . Terminals 11 | . 11 . Fabricators . | . . . Repair Stations . | . . . Recycling Units . | . . . Scanalyzers . | . . . Garrison Access . | . . . Terminal Hacks 6 | . 6 . Prototype ID Bank 1 | . 1 . Branch Access Points 1 | . 1 . Unreport Threat 2 | . 2 . Dispatch Records 1 | . 1 . Registered Components 1 | . 1 . Fabricator Hacks . | . . . Repair Station Hacks . | . . . Recycling Unit Hacks . | . . . Scanalyzer . | . . . Garrison Access Hacks . | . . . Unauthorized Hacks . | . . . Terminals . | . . . Fabricators . | . . . Repair Stations . | . . . Recycling Units . | . . . Scanalyzers . | . . . Garrison Access . | . . . Data Cores Recovered . | . . . Used . | . . . Hacking Detections 3 | . 3 . Full Trace Events 2 | . 2 . Feedback Events . | . . . Feedback Blocked . | . . . Robot Schematics Acquired . | . . . Robots Built . | . . . Authchips . | . . . Time . | . . . Total Robot Build Rating . | . . . Part Schematics Acquired . | . . . Parts Built . | . . . Authchips . | . . . Time . | . . . Total Part Build Rating . | . . . Parts Repaired . | . . . Time . | . . . Parts Recycled . | . . . Recycled Matter . | . . . Retrieved Matter . | . . . Retrieved Components . | . . . Parts Scanalyzed . | . . . Part Schematics Acquired . | . . . Parts Damaged . | . . . Bothacking | -11 -10 -10 ------------ Run | Yrd Mat Min Used RIF Installer . | . . . Robots Hacked . | . . . Non-combat . | . . . Combat . | . . . Robot Hacks Applied . | . . . Relay Couplers Released . | . . . Fabnet Peak Effective % . | . . . Robots Rewired . | . . . Allies Hacked . | . . . Hacks Repelled . | . . . Allies | -11 -10 -10 -------- Run | Yrd Mat Min Total Allies . | . . . Largest Group . | . . . Highest-Rated Group . | . . . Highest-Rated Ally . | . . . Total Orders . | . . . Ally Attacks . | . . . Total Damage . | . . . Kills . | . . . Allies Corrupted . | . . . Allies Melted . | . . . Intel | -11 -10 -10 ------- Run | Yrd Mat Min Robot Analysis Total . | . . . Derelict Logs Recovered 1 | . . 1 Drone Launches . | . . . Drone Recoveries . | . . . Exploration | -11 -10 -10 ------------- Run | Yrd Mat Min Turns Passed 572 | 5 259 308 Spaces Moved 306 | 5 142 159 Core . | . . . Treads 100 | . . 100 Legs 148 | 5 142 1 Wheels 58 | . . 58 Hover . | . . . Flight . | . . . Fastest Speed 80 | 120 120 80 Average Speed 125 | 120 120 130 Slowest Speed 160 | 120 120 160 Overloaded Moves . | . . . Propulsion Burnouts . | . . . Robots Hopped . | . . . Cave-ins Triggered . | . . . Exploration Rate (%) 23 | 2 34 33 Regions Visited 2 Branch Regions 1 Pre-discovered Areas . | . . . Known Exits Taken 1 | . 1 . Unknown Exits Taken 1 | 1 . . Scrap Searched 1 | . . 1 Spaces Dug . | . . . Terrain Destroyed . | . . . Melee . | . . . Projectile . | . . . AOE . | . . . Terrain Rammed . | . . . Walls Destroyed . | . . . Machines Disabled . | . . . Actions | -11 -10 -10 --------- Run | Yrd Mat Min Total 397 | 4 184 209 Wait 10 | . 10 . Move 304 | 4 141 159 Hop . | . . . Pick Up 7 | . 4 3 Fast Attach 2 | . 2 . Attach 7 | . . 7 Detach 3 | . 1 2 Swap 7 | . 1 6 Drop 5 | . 2 3 Fire 51 | . 23 28 Melee . | . . . Ram . | . . . Kick . | . . . Crush 1 | . . 1 Escape Stasis . | . . . Rewire . | . . . Trap . | . . . Miscellaneous . | . . . Route ------- -11/Scrapyard -10/Materials (discovered 2 exits: [*Mat] / *Min) -10/Mines History --------- Turn | Location | Event 1 | -11/Scrapyard | Discovered new exit (range 3) 6 | -11/Scrapyard | Entered Materials 180 | -10/Materials | Identified exit to Mines 189 | -10/Materials | Discovered new exit (range 13) 265 | -10/Materials | Entered Mines 315 | -10/Mines | Lost 3 parts (1p1n1w) 335 | -10/Mines | Build established: Mutant 355 | -10/Mines | Found a damaged Exp. Sensor Array with a note attached 358 | -10/Mines | Found Prototype Device 465 | -10/Mines | Assembled infested the area 479 | -10/Mines | Core integrity fell below 50% 511 | -10/Mines | Core integrity fell below 20% 535 | -10/Mines | Lost 3 parts (1n2w) 573 | -10/Mines | Destroyed by D-53 Grenadier with Mini Grenade Launcher Last Messages --------------- 00504_ Beam Cannon destroyed. 00504_ Lgt. Treads destroyed. 00510_ Slammed into as-97698. 00511_ Acquired 6 matter. 00512_ as-97698 destroyed. 00515_ as-11166 destroyed. 00515_ as-31590 destroyed. 00517_ Searching scrap... 00517_ Found Sensor Array. 00517_ Found Sml. Storage Unit. 00517_ Found Seismic Detector. 00517_ Found Sml. Storage Unit. 00517_ Found 20 Matter. 00518_ Acquired 10 matter. 00526_ as-35865 destroyed. 00551_ Acquired derelict log, extracted data. Data stored: Recycling entrances (x1). 00569_ EM Pulse Gun destroyed. 00571_ K-01 Serf collects debris. 00573_ Imp. Ion Engine destroyed. Map ----- +----------------------------------------------------+ | ????????????????????????????????????????? | | ????????????????????????????????????????? | | ????????????????????????????????????????? | | ????????????????????????????????????????? | | ????????????????????????????????????????? | | ????????????????????????????????????????? | | ????????????????????????????????????????? | | ??????????????? ??????????????????????? | | ???????????????? ??????????????????????? | | ???????????????? ??????????????????????? | | ???????????????? ?????????????????????? | | ????????????????%% ???????????????????? | | ???????????????##k# ??????????????????? | | ??????????????# # # ??????????????????? | | ?????????????## #??????????????????? | | ?????????????# #??????????????????? | | ?????????????# ???????????????????? | | ???####???????# r##??????????????????? | | ??## ######??? % #??????????????????? | | ??# ###? #######????????????? | | ??# # ## # %d ##???????????? | | ??## """ ## ##?????###### | | ???# """ ! #?## ##???##"!!"# | | ???# """ ! #??## ##??#""[!"" | | ??# ###???## #??# [*= | | ??# @ ####??# #####%=%!# | | ??# ### ##?## ## ##++## | | ??# ###?#### # #??## [*= | | ??## #???????# #???## | | ???###????????# ## ##???## ## | | ??????????????# ## #????# | | ??????????????# ### ##???## | | ??????????????# ### ##???### | | ??????????????# ##????## | | ??????????????###### #?????## | | ???????????????????### #??????####### | | ?????????????????????## #????????????? | | ??????????????????????### #???????????? | | ????????????????????????## #???????????? | | ??????????????????????????###???????????? | | ????????????????????????????????????????? | | ????????????????????????????????????????? | | ????????????????????????????????????????? | | ????????????????????????????????????????? | | | | | | | | | | | | | +----------------------------------------------------+ Best States ------------- Heat Dissipation 39 Energy Generation 12 Energy Capacity 265 Matter Stores 300 Matter Capacity 300 Sight Range 16 Terrain Scan Density 10 Evasion (%) 55 Recoil Reduction 2 Item Schematics ----------------- None Robot Schematics ------------------ None Fabricated ------------ Nothing Alien Tech Used ----------------- None Achievements -------------- None Challenges ------------ None Game ------ Seed ExplosiveSigixGuard Manual? 0 Play Time 00:09:02 Cumulative 603.5 hours Start 2024.01.20 @ 02:57:13 End 2024.01.20 @ 03:10:08 Sessions 1 Manual Loads 0 Difficulty Rogue Special Mode None Game No. 546 Rogue 273 Adventurer 123 Explorer 150 Win Type - Total 25 Types 19/0/4/1/0/0/0/1/0 Lore% 79 Gallery% 90 Achievement% 75 Wizard Run 0 Options --------- ASCII 0 Keyboard 1 Movement Numpad Keybinds 0 Fullscreen 2 Font 18/X11Bold Map View 76x50 Zoom Use 0% Tactical HUD 1 Map Filters NONE Filters NONE Steam 1 RUN: d0c84ef9-efff-4b09-b409-0ba5e92d66bb